{"text_format":"1","workbook":"xlsx","n_sheets":5,"sheets":["最短ルート検索","印刷用シート","使い方","Password","CSV"],"not_rendered":{"charts":2,"images":0,"macros":1,"external_links":1,"defined_names":18,"comments":0,"pivot_tables":0},"unopened":[],"bounds":{"document_bytes":16777216,"sheet_cells":100000,"rows_first":2000,"rows_last":500,"rows_between":2000,"halvings":0,"cell_chars":16384,"cell_head_chars":4096},"cells_cut":0,"cells_raw":0,"read":"whole","date_system":"1900"}

{"sheet":"最短ルート検索","index":0,"n_rows":45,"n_cols":46,"rows_kept":45,"cut":false,"hidden":false,"merged":[[0,1,0,2],[4,10,4,12],[5,4,5,5],[6,4,6,5]]}
[null,"配送ルート最適化プログラム　",null,null,null,null,"記入欄","結果出力欄"]
[]
[null,"ルートの回り方（選択）","おまかせ"]
[null,"出発時刻","09:30:00"]
[null,"発着地点(配送センター住所)","東京都江東区海辺8-4",null,null,null,null,null,"出発地点",null,"最適化結果"]
[null,"一か所での停止時間(時:分)","00:05:00",null,"本日のナビ検索回数\n(使用時にリセット）",null,17,null,"緯度","経度","総時間","移動時間","移動距離"]
[null,null,"ナビ検索完了。所要時間、総距離を記入しました。",null,"最終利用",null,"2025-04-06T16:50:10",null,35.680477000000003,139.819672]
["入力データ：順序は気にしなくてよいです。空白が最終行となります。",null,null,null,"結果データ：配送順を決定した後のデータです。[(2)時間測定]の前に行をコピーして配送順番を変更しても計算できます。"]
["ID","配送先名称","配送先住所",null,"配送順","ID","配送先名称","配送先住所","緯度","経度","到着時刻","時間(分)","距離(km)",null,null,null,null,null,null,"配送先番号","配送先名","配送先住所","緯度","経度","x","y","配送順重みづけF"]
[1001,"ファミリーマート千田店","東京都江東区千田１６−１"]
[1002,"セブンイレブン扇橋店","東京都江東区扇橋１丁目１２−１８"]
[1003,"木場公園","東京都江東区平野４丁目６"]
[1004,"江戸深川資料館","東京都江東区白河１丁目３−２８"]
[1005,"セブンイレブン深川店","東京都江東区森下３丁目１−１１ 池田ビル"]
[1006,"ライフ深川店","東京都墨田区菊川１丁目１８−５"]
[1007,"セブンイレブン新大橋店","東京都江東区新大橋３丁目９−９"]
[1008,"江東区芭蕉記念館","東京都江東区常盤１丁目６−３"]
[1009,"コーナン江東店","東京都江東区深川１丁目６−２"]
[1010,"ソフトバンク門前中町店","東京都江東区門前仲町１丁目６−１２ 門前仲町ＭＡビル 1F"]
[1011,"ブックオフ門前中町店","東京都江東区越中島１丁目２−７ アスミビル"]
[1012,"ローソン木場店","東京都江東区木場５丁目４−１"]
[1013,"ホテルルートイン東陽町","東京都江東区東陽２丁目３−１２"]
[1014,"西濃運輸深川支店","東京都江東区新砂１丁目３−７"]
[1015,"佐川急便東京本社","東京都江東区新砂２丁目２−８"]
[1016,"コーナンドイト南砂店","東京都江東区南砂６丁目７−１５"]
[1017,"隅田区北斎美術館","東京都墨田区亀沢２丁目７−２"]
[1018]
[1019]
[1020,null,null,null,null,null,null,null,null,null,null,null,null,null,null,null,null,null,null,null,null,null,null,null,null,null,null,null,null,null,null,null,null,{"$f":"((AH12-AH11)^2+(AI12-AI11)^2)^0.5","v":0},null,null,null,{"$f":"((AL12-AL11)^2+(AM12-AM11)^2)^0.5","v":0},null,null,null,{"$f":"((AP12-AP11)^2+(AQ12-AQ11)^2)^0.5","v":0},null,null,null,{"$f":"((AT12-AT11)^2+(AU12-AU11)^2)^0.5","v":0}]
[null,null,null,null,null,null,null,null,null,null,null,null,null,null,null,null,null,null,null,null,null,null,null,null,null,null,null,null,null,null,null,null,null,0,null,null,null,0,null,null,null,0,null,null,null,0]
[null,null,null,null,null,null,null,null,null,null,null,null,null,null,null,null,null,null,null,null,null,null,null,null,null,null,null,null,null,null,null,null,null,0,null,null,null,0,null,null,null,0,null,null,null,0]
[null,null,null,null,null,null,null,null,null,null,null,null,null,null,null,null,null,null,null,null,null,null,null,null,null,null,null,null,null,null,null,null,null,0,null,null,null,0,null,null,null,0,null,null,null,0]
[null,null,null,null,null,null,null,null,null,null,null,null,null,null,null,null,null,null,null,null,null,null,null,null,null,null,null,null,null,null,null,null,null,0,null,null,null,0,null,null,null,0,null,null,null,0]
[null,null,null,null,null,null,null,null,null,null,null,null,null,null,null,null,null,null,null,null,null,null,null,null,null,null,null,null,null,null,null,null,null,0,null,null,null,0,null,null,null,0,null,null,null,0]
[null,null,null,null,null,null,null,null,null,null,null,null,null,null,null,null,null,null,null,null,null,null,null,null,null,null,null,null,null,null,null,null,null,0,null,null,null,0,null,null,null,0,null,null,null,0]
[null,null,null,null,null,null,null,null,null,null,null,null,null,null,null,null,null,null,null,null,null,null,null,null,null,null,null,null,null,null,null,null,null,0,null,null,null,0,null,null,null,0,null,null,null,0]
[null,null,null,null,null,null,null,null,null,null,null,null,null,null,null,null,null,null,null,null,null,null,null,null,null,null,null,null,null,null,null,null,null,0,null,null,null,0,null,null,null,0,null,null,null,0]
[null,null,null,null,null,null,null,null,null,null,null,null,null,null,null,null,null,null,null,null,null,null,null,null,null,null,null,null,null,null,null,null,null,0,null,null,null,0,null,null,null,0,null,null,null,0]
[null,null,null,null,null,null,null,null,null,null,null,null,null,null,null,null,null,null,null,null,null,null,null,null,null,null,null,null,null,null,null,null,null,0,null,null,null,0,null,null,null,0,null,null,null,0]
[null,null,null,null,null,null,null,null,null,null,null,null,null,null,null,null,null,null,null,null,null,null,null,null,null,null,null,null,null,null,null,null,null,0,null,null,null,0,null,null,null,0,null,null,null,0]
[null,null,null,null,null,null,null,null,null,null,null,null,null,null,null,null,null,null,null,null,null,null,null,null,null,null,null,null,null,null,null,null,null,{"$f":"((AH24-AH23)^2+(AI24-AI23)^2)^0.5","v":0},null,null,null,{"$f":"((AL24-AL23)^2+(AM24-AM23)^2)^0.5","v":0},null,null,null,{"$f":"((AP24-AP23)^2+(AQ24-AQ23)^2)^0.5","v":0},null,null,null,{"$f":"((AT24-AT23)^2+(AU24-AU23)^2)^0.5","v":0}]
[null,null,null,null,null,null,null,null,null,null,null,null,null,null,null,null,null,null,null,null,null,null,null,null,null,null,null,null,null,null,null,null,null,0,null,null,null,0,null,null,null,0,null,null,null,0]
[null,null,null,null,null,null,null,null,null,null,null,null,null,null,null,null,null,null,null,null,null,null,null,null,null,null,null,null,null,null,null,null,null,{"$f":"((AH26-AH25)^2+(AI26-AI25)^2)^0.5","v":0},null,null,null,{"$f":"((AL26-AL25)^2+(AM26-AM25)^2)^0.5","v":0},null,null,null,{"$f":"((AP26-AP25)^2+(AQ26-AQ25)^2)^0.5","v":0},null,null,null,{"$f":"((AT26-AT25)^2+(AU26-AU25)^2)^0.5","v":0}]
[]
[null,null,null,null,null,null,null,null,null,null,null,null,null,null,null,null,null,null,null,null,null,null,null,null,null,null,null,null,null,null,null,null,null,{"$f":"SUM(AH28:AH43)","v":0},null,null,null,{"$f":"SUM(AL28:AL43)","v":0},null,null,null,{"$f":"SUM(AP28:AP43)","v":0},null,null,null,{"$f":"SUM(AT28:AT43)","v":0}]

{"sheet":"印刷用シート","index":1,"n_rows":29,"n_cols":12,"rows_kept":29,"cut":false,"hidden":false,"merged":[[3,11,11,13]]}
["印刷シート",null,null,null,null,null,null,"総時間","移動時間","移動距離"]
[null,null,null,"本日の配送順序",{"$f":"TODAY()","v":"2025-04-19"},null,null,{"$f":"最短ルート検索!K7","v":"00:00:00"},{"$f":"最短ルート検索!L7","v":"00:00:00"},{"$f":"最短ルート検索!M7","v":0}]
[]
[null,{"$f":"最短ルート検索!E9","v":"配送順"},{"$f":"最短ルート検索!F9","v":"ID"},{"$f":"最短ルート検索!G9","v":"配送先名称"},{"$f":"最短ルート検索!H9","v":"配送先住所"},{"$f":"最短ルート検索!I9","v":"緯度"},{"$f":"最短ルート検索!J9","v":"経度"},{"$f":"最短ルート検索!K9","v":"到着時刻"},{"$f":"最短ルート検索!L9","v":"時間(分)"},{"$f":"最短ルート検索!M9","v":"距離(km)"},null,"このシート(印刷用シート)は「最短ルート検索」の結果をコピーしているだけです。\n\n印刷用にお使いください。\n\nファイル→印刷、で印刷可能です。"]
[null,{"$f":"最短ルート検索!E10","v":0},{"$f":"最短ルート検索!F10","v":0},{"$f":"最短ルート検索!G10","v":0},{"$f":"最短ルート検索!H10","v":0},{"$f":"最短ルート検索!I10","v":0},{"$f":"最短ルート検索!J10","v":0},{"$f":"最短ルート検索!K10","v":"00:00:00"},{"$f":"最短ルート検索!L10","v":0},{"$f":"最短ルート検索!M10","v":0}]
[null,{"$f":"最短ルート検索!E11","v":0},{"$f":"最短ルート検索!F11","v":0},{"$f":"最短ルート検索!G11","v":0},{"$f":"最短ルート検索!H11","v":0},{"$f":"最短ルート検索!I11","v":0},{"$f":"最短ルート検索!J11","v":0},{"$f":"最短ルート検索!K11","v":"00:00:00"},{"$f":"最短ルート検索!L11","v":0},{"$f":"最短ルート検索!M11","v":0}]
[null,{"$f":"最短ルート検索!E12","v":0},{"$f":"最短ルート検索!F12","v":0},{"$f":"最短ルート検索!G12","v":0},{"$f":"最短ルート検索!H12","v":0},{"$f":"最短ルート検索!I12","v":0},{"$f":"最短ルート検索!J12","v":0},{"$f":"最短ルート検索!K12","v":"00:00:00"},{"$f":"最短ルート検索!L12","v":0},{"$f":"最短ルート検索!M12","v":0}]
[null,{"$f":"最短ルート検索!E13","v":0},{"$f":"最短ルート検索!F13","v":0},{"$f":"最短ルート検索!G13","v":0},{"$f":"最短ルート検索!H13","v":0},{"$f":"最短ルート検索!I13","v":0},{"$f":"最短ルート検索!J13","v":0},{"$f":"最短ルート検索!K13","v":"00:00:00"},{"$f":"最短ルート検索!L13","v":0},{"$f":"最短ルート検索!M13","v":0}]
[null,{"$f":"最短ルート検索!E14","v":0},{"$f":"最短ルート検索!F14","v":0},{"$f":"最短ルート検索!G14","v":0},{"$f":"最短ルート検索!H14","v":0},{"$f":"最短ルート検索!I14","v":0},{"$f":"最短ルート検索!J14","v":0},{"$f":"最短ルート検索!K14","v":"00:00:00"},{"$f":"最短ルート検索!L14","v":0},{"$f":"最短ルート検索!M14","v":0}]
[null,{"$f":"最短ルート検索!E15","v":0},{"$f":"最短ルート検索!F15","v":0},{"$f":"最短ルート検索!G15","v":0},{"$f":"最短ルート検索!H15","v":0},{"$f":"最短ルート検索!I15","v":0},{"$f":"最短ルート検索!J15","v":0},{"$f":"最短ルート検索!K15","v":"00:00:00"},{"$f":"最短ルート検索!L15","v":0},{"$f":"最短ルート検索!M15","v":0}]
[null,{"$f":"最短ルート検索!E16","v":0},{"$f":"最短ルート検索!F16","v":0},{"$f":"最短ルート検索!G16","v":0},{"$f":"最短ルート検索!H16","v":0},{"$f":"最短ルート検索!I16","v":0},{"$f":"最短ルート検索!J16","v":0},{"$f":"最短ルート検索!K16","v":"00:00:00"},{"$f":"最短ルート検索!L16","v":0},{"$f":"最短ルート検索!M16","v":0}]
[null,{"$f":"最短ルート検索!E17","v":0},{"$f":"最短ルート検索!F17","v":0},{"$f":"最短ルート検索!G17","v":0},{"$f":"最短ルート検索!H17","v":0},{"$f":"最短ルート検索!I17","v":0},{"$f":"最短ルート検索!J17","v":0},{"$f":"最短ルート検索!K17","v":"00:00:00"},{"$f":"最短ルート検索!L17","v":0},{"$f":"最短ルート検索!M17","v":0}]
[null,{"$f":"最短ルート検索!E18","v":0},{"$f":"最短ルート検索!F18","v":0},{"$f":"最短ルート検索!G18","v":0},{"$f":"最短ルート検索!H18","v":0},{"$f":"最短ルート検索!I18","v":0},{"$f":"最短ルート検索!J18","v":0},{"$f":"最短ルート検索!K18","v":"00:00:00"},{"$f":"最短ルート検索!L18","v":0},{"$f":"最短ルート検索!M18","v":0}]
[null,{"$f":"最短ルート検索!E19","v":0},{"$f":"最短ルート検索!F19","v":0},{"$f":"最短ルート検索!G19","v":0},{"$f":"最短ルート検索!H19","v":0},{"$f":"最短ルート検索!I19","v":0},{"$f":"最短ルート検索!J19","v":0},{"$f":"最短ルート検索!K19","v":"00:00:00"},{"$f":"最短ルート検索!L19","v":0},{"$f":"最短ルート検索!M19","v":0}]
[null,{"$f":"最短ルート検索!E20","v":0},{"$f":"最短ルート検索!F20","v":0},{"$f":"最短ルート検索!G20","v":0},{"$f":"最短ルート検索!H20","v":0},{"$f":"最短ルート検索!I20","v":0},{"$f":"最短ルート検索!J20","v":0},{"$f":"最短ルート検索!K20","v":"00:00:00"},{"$f":"最短ルート検索!L20","v":0},{"$f":"最短ルート検索!M20","v":0}]
[null,{"$f":"最短ルート検索!E21","v":0},{"$f":"最短ルート検索!F21","v":0},{"$f":"最短ルート検索!G21","v":0},{"$f":"最短ルート検索!H21","v":0},{"$f":"最短ルート検索!I21","v":0},{"$f":"最短ルート検索!J21","v":0},{"$f":"最短ルート検索!K21","v":"00:00:00"},{"$f":"最短ルート検索!L21","v":0},{"$f":"最短ルート検索!M21","v":0}]
[null,{"$f":"最短ルート検索!E22","v":0},{"$f":"最短ルート検索!F22","v":0},{"$f":"最短ルート検索!G22","v":0},{"$f":"最短ルート検索!H22","v":0},{"$f":"最短ルート検索!I22","v":0},{"$f":"最短ルート検索!J22","v":0},{"$f":"最短ルート検索!K22","v":"00:00:00"},{"$f":"最短ルート検索!L22","v":0},{"$f":"最短ルート検索!M22","v":0}]
[null,{"$f":"最短ルート検索!E23","v":0},{"$f":"最短ルート検索!F23","v":0},{"$f":"最短ルート検索!G23","v":0},{"$f":"最短ルート検索!H23","v":0},{"$f":"最短ルート検索!I23","v":0},{"$f":"最短ルート検索!J23","v":0},{"$f":"最短ルート検索!K23","v":"00:00:00"},{"$f":"最短ルート検索!L23","v":0},{"$f":"最短ルート検索!M23","v":0}]
[null,{"$f":"最短ルート検索!E24","v":0},{"$f":"最短ルート検索!F24","v":0},{"$f":"最短ルート検索!G24","v":0},{"$f":"最短ルート検索!H24","v":0},{"$f":"最短ルート検索!I24","v":0},{"$f":"最短ルート検索!J24","v":0},{"$f":"最短ルート検索!K24","v":"00:00:00"},{"$f":"最短ルート検索!L24","v":0},{"$f":"最短ルート検索!M24","v":0}]
[null,{"$f":"最短ルート検索!E25","v":0},{"$f":"最短ルート検索!F25","v":0},{"$f":"最短ルート検索!G25","v":0},{"$f":"最短ルート検索!H25","v":0},{"$f":"最短ルート検索!I25","v":0},{"$f":"最短ルート検索!J25","v":0},{"$f":"最短ルート検索!K25","v":"00:00:00"},{"$f":"最短ルート検索!L25","v":0},{"$f":"最短ルート検索!M25","v":0}]
[null,{"$f":"最短ルート検索!E26","v":0},{"$f":"最短ルート検索!F26","v":0},{"$f":"最短ルート検索!G26","v":0},{"$f":"最短ルート検索!H26","v":0},{"$f":"最短ルート検索!I26","v":0},{"$f":"最短ルート検索!J26","v":0},{"$f":"最短ルート検索!K26","v":"00:00:00"},{"$f":"最短ルート検索!L26","v":0},{"$f":"最短ルート検索!M26","v":0}]
[null,{"$f":"最短ルート検索!E27","v":0},{"$f":"最短ルート検索!F27","v":0},{"$f":"最短ルート検索!G27","v":0},{"$f":"最短ルート検索!H27","v":0},{"$f":"最短ルート検索!I27","v":0},{"$f":"最短ルート検索!J27","v":0},{"$f":"最短ルート検索!K27","v":"00:00:00"},{"$f":"最短ルート検索!L27","v":0},{"$f":"最短ルート検索!M27","v":0}]
[null,{"$f":"最短ルート検索!E28","v":0},{"$f":"最短ルート検索!F28","v":0},{"$f":"最短ルート検索!G28","v":0},{"$f":"最短ルート検索!H28","v":0},{"$f":"最短ルート検索!I28","v":0},{"$f":"最短ルート検索!J28","v":0},{"$f":"最短ルート検索!K28","v":"00:00:00"},{"$f":"最短ルート検索!L28","v":0},{"$f":"最短ルート検索!M28","v":0}]
[null,{"$f":"最短ルート検索!E29","v":0},{"$f":"最短ルート検索!F29","v":0},{"$f":"最短ルート検索!G29","v":0},{"$f":"最短ルート検索!H29","v":0},{"$f":"最短ルート検索!I29","v":0},{"$f":"最短ルート検索!J29","v":0},{"$f":"最短ルート検索!K29","v":"00:00:00"},{"$f":"最短ルート検索!L29","v":0},{"$f":"最短ルート検索!M29","v":0}]
[null,{"$f":"最短ルート検索!E30","v":0},{"$f":"最短ルート検索!F30","v":0},{"$f":"最短ルート検索!G30","v":0},{"$f":"最短ルート検索!H30","v":0},{"$f":"最短ルート検索!I30","v":0},{"$f":"最短ルート検索!J30","v":0},{"$f":"最短ルート検索!K30","v":"00:00:00"},{"$f":"最短ルート検索!L30","v":0},{"$f":"最短ルート検索!M30","v":0}]
[null,{"$f":"最短ルート検索!E31","v":0},{"$f":"最短ルート検索!F31","v":0},{"$f":"最短ルート検索!G31","v":0},{"$f":"最短ルート検索!H31","v":0},{"$f":"最短ルート検索!I31","v":0},{"$f":"最短ルート検索!J31","v":0},{"$f":"最短ルート検索!K31","v":"00:00:00"},{"$f":"最短ルート検索!L31","v":0},{"$f":"最短ルート検索!M31","v":0}]
[null,{"$f":"最短ルート検索!E36","v":0},{"$f":"最短ルート検索!F36","v":0},{"$f":"最短ルート検索!G36","v":0},{"$f":"最短ルート検索!H36","v":0},{"$f":"最短ルート検索!I36","v":0},{"$f":"最短ルート検索!J36","v":0},{"$f":"最短ルート検索!K36","v":"00:00:00"},{"$f":"最短ルート検索!L36","v":0},{"$f":"最短ルート検索!M36","v":0}]
[null,{"$f":"最短ルート検索!E37","v":0},{"$f":"最短ルート検索!F37","v":0},{"$f":"最短ルート検索!G37","v":0},{"$f":"最短ルート検索!H37","v":0},{"$f":"最短ルート検索!I37","v":0},{"$f":"最短ルート検索!J37","v":0},{"$f":"最短ルート検索!K37","v":"00:00:00"},{"$f":"最短ルート検索!L37","v":0},{"$f":"最短ルート検索!M37","v":0}]
[null,{"$f":"最短ルート検索!E38","v":0},{"$f":"最短ルート検索!F38","v":0},{"$f":"最短ルート検索!G38","v":0},{"$f":"最短ルート検索!H38","v":0},{"$f":"最短ルート検索!I38","v":0},{"$f":"最短ルート検索!J38","v":0},{"$f":"最短ルート検索!K38","v":"00:00:00"},{"$f":"最短ルート検索!L38","v":0},{"$f":"最短ルート検索!M38","v":0}]

{"sheet":"使い方","index":2,"n_rows":48,"n_cols":3,"rows_kept":48,"cut":false,"hidden":false,"merged":[]}
["本ソフトの機能"]
[null,"(1)最適化並び替え経路検索について"]
[null,null,"複数の配達先に対して、最短経路となる配達順序を算出いたします。"]
[null,"(2)時間測定(ナビ検索)"]
[null,null,"上記で決定した順序について、インターネットを利用した経路検索で、所要時間と総距離を出力します。"]
["使い方"]
[null,1,"[最短ルート検索]シートを開きます。"]
[null,2,"[3C]セルに配達方向を記入します。指定が無い場合は「おまかせ」を選択ください。"]
[null,2,"[4C]セルに配達開始時間を記入します。"]
[null,3,"[5C]セルに発着地点の住所を記入します。配送センターや車庫等の住所です。"]
[null,4,"[6C]セルに一か所の配達場所での停止時間を記入します。"]
[null,5,"A,B,C列に、配送先の管理番号、名称と住所を記入します。"]
[null,6,"[(1)最適化並び替え実行]をクリックします。"]
[null,null,"　　　→最短経路となる配送順序が決定され、E列より右に出力されます。"]
[null,7,"[(2)時間測定、ナビ検索]をクリックします。"]
[null,null,"　　→移動にかかる時間と距離をナビ検索により求めます。"]
[null,8,"[印刷用シート]を用いて印刷が可能です。"]
[]
["お問い合わせ"]
[]
[null,null,"○うまく動作しない場合→お気軽にお問い合わせください。ユーザー様のニーズで開発しています。"]
[null,null,"https://tyk-systems.com/KyoriDistanceCO2Ask/postmailExcelKyori.html"]
[null,null,"お見積り依頼もこちらからお送りいただけます。"]
[]
[null,null,"○使用方法の説明ページ"]
[null,null,"https://tyk-systems.com/RouteOptim/RouteOptim.html"]
[]
[]
[]
[]
["製品版(シェアウェア)ご購入のご案内"]
["<メリット>"]
["1、一日の最大問い合わせ数が拡大します。"]
["2、業務用途にもお使いいただけます。"]
["3、製品版のユーザー名とパスワード発行を記入することで動作します。"]
["4、表示行の変更やデータのインポートなどのカスタマイズも可能です。お問い合わせください。"]
["***ご購入条件は質問欄よりお問い合わせください***"]
[]
["フリーソフト版の使用上のご注意"]
["1、インターネット接続の速度で応答の早さが決まります。"]
["2、フリーソフト版では最大問合せ件数が約30件に設定されています。"]
["3、無断複写、再配布、転用、営利（業務）利用を禁じます。"]
["4、住所の表記が曖昧の場合にはとソフトが停止することがあります。"]
[]
[]
[]
["改訂履歴"]
[null,"2025.3.13","初版発行"]

{"sheet":"Password","index":3,"n_rows":11,"n_cols":63,"rows_kept":11,"cut":false,"hidden":false,"merged":[]}
[]
[]
[null,"〇製品版ライセンス (入力により最大問い合わせ数の制限が解除されます、発行されたIDからコピーしてお使いください。)",null,null,null,null,null,null,null,null,null,null,null,null,null,null,null,null,null,null,null,null,null,null,null,null,null,null,null,null,null,null,null,null,null,null,null,null,null,null,null,null,null,null,null,null,null,null,null,null,null,null,null,null,null,null,null,null,null,null,null,null,82084]
[null,"ユーザー名  （例： TokyoCorporation-Entry-20260308）"]
[]
[]
[]
[]
[null,"<著作権表示>"]
[null,"© 戸田システムウェア、戸田よろず研究所 2021-2025"]
[null,"Copyright(C)　2021-2025 Toda Systemware All rights reserved. "]

{"sheet":"CSV","index":4,"n_rows":3,"n_cols":3,"rows_kept":3,"cut":false,"hidden":false,"merged":[]}
[null,"外部ファイルの読み込み用シート"]
[null,null,"CSVファイル、TXTファイル、DATファイルなどのテキストデータを読み込むことができます。"]
[null,null,"読み込んだファイルの荷物番号欄などを[DataSheet]に手動でコピー＆ペースとしてご利用ください。"]